[Event "Titled Tuesday Blitz July 25 Late 2023"]
[White "Kanakaris, Georgios"]
[Black "Nihal Sarin"]
[WhiteFideId "4209460"]
[BlackFideId "25092340"]
[WhiteElo "2504"]
[BlackElo "3070"]
[Result "0-1"]
[Round "1"]
[TimeControl "180+2"]
[Date "2023.07.25"]
[WhiteClock "0:00:00"]
[BlackClock "0:00:51"]
[Board "7"]

1. d4 {[%clk 0:02:57]}  Nf6 {[%clk 0:02:44]} 2. Nf3 {[%clk 0:02:57]}  d5 {[%clk 0:02:42]} 3. c4 {[%clk 0:02:56]}  e6 {[%clk 0:02:42]} 4. e3 {[%clk 0:02:56]}  Be7 {[%clk 0:02:41]} 5. Nbd2 {[%clk 0:02:55]}  O-O {[%clk 0:02:42]} 6. Bd3 {[%clk 0:02:56]}  b6 {[%clk 0:02:42]} 7. b3 {[%clk 0:02:55]}  Bb7 {[%clk 0:02:42]} 8. Bb2 {[%clk 0:02:55]}  Nbd7 {[%clk 0:02:43]} 9. O-O {[%clk 0:02:55]}  c5 {[%clk 0:02:44]} 10. Rc1 {[%clk 0:02:55]}  Rc8 {[%clk 0:02:43]} 11. Qe2 {[%clk 0:02:53]}  h6 {[%clk 0:02:22]} 12. Rfd1 {[%clk 0:02:45]}  Rc7 {[%clk 0:02:05]} 13. cxd5 {[%clk 0:02:32]}  Nxd5 {[%clk 0:01:59]} 14. a3 {[%clk 0:02:09]}  Qa8 {[%clk 0:01:23]} 15. Bb1 {[%clk 0:01:52]}  Rfc8 {[%clk 0:01:22]} 16. Qd3 {[%clk 0:01:33]}  N5f6 {[%clk 0:01:20]} 17. a4 {[%clk 0:01:03]}  cxd4 {[%clk 0:01:15]} 18. Rxc7 {[%clk 0:00:56]}  Rxc7 {[%clk 0:01:16]} 19. Qxd4 {[%clk 0:00:54]}  Nc5 {[%clk 0:01:10]} 20. Qe5 {[%clk 0:00:21]}  Rd7 {[%clk 0:01:05]} 21. Rc1 {[%clk 0:00:19]}  Bxf3 {[%clk 0:00:56]} 22. Nxf3 {[%clk 0:00:17]}  Nxb3 {[%clk 0:00:56]} 23. Re1 {[%clk 0:00:14]}  Nc5 {[%clk 0:00:56]} 24. Qg3 {[%clk 0:00:03]}  Nxa4 {[%clk 0:00:54]} 25. Ba1 {[%clk 0:00:02]}  Nc5 {[%clk 0:00:51]} 26. Ne5 {[%clk 0:00:00]}  Rd8 {[%clk 0:00:51]} 0-1


[Site "https://www.chess.com"]

[Event "Titled Tuesday Blitz July 25 Late 2023"]
[White "Tikhonov, Viacheslav"]
[Black "Sarana, Alexey"]
[WhiteFideId "44196407"]
[BlackFideId "24133795"]
[WhiteElo "2503"]
[BlackElo "3045"]
[Result "1/2-1/2"]
[Round "1"]
[TimeControl "180+2"]
[Date "2023.07.25"]
[WhiteClock "0:00:11"]
[BlackClock "0:00:04"]
[Board "9"]

1. d4 {[%clk 0:02:59]}  Nf6 {[%clk 0:02:59]} 2. c4 {[%clk 0:03:00]}  e6 {[%clk 0:02:59]} 3. Nf3 {[%clk 0:03:00]}  d5 {[%clk 0:02:58]} 4. g3 {[%clk 0:03:00]}  Bb4+ {[%clk 0:02:55]} 5. Bd2 {[%clk 0:03:00]}  Be7 {[%clk 0:02:55]} 6. Bg2 {[%clk 0:03:00]}  O-O {[%clk 0:02:54]} 7. O-O {[%clk 0:03:01]}  Nbd7 {[%clk 0:02:54]} 8. b4 {[%clk 0:03:00]}  dxc4 {[%clk 0:02:53]} 9. Qc1 {[%clk 0:03:00]}  Nb6 {[%clk 0:02:52]} 10. a4 {[%clk 0:03:01]}  Ne4 {[%clk 0:02:42]} 11. Be1 {[%clk 0:02:39]}  Nd6 {[%clk 0:02:41]} 12. a5 {[%clk 0:02:20]}  Nd5 {[%clk 0:02:40]} 13. Ne5 {[%clk 0:02:20]}  Bf6 {[%clk 0:02:16]} 14. Na3 {[%clk 0:02:20]}  c3 {[%clk 0:02:09]} 15. Rb1 {[%clk 0:02:04]}  c6 {[%clk 0:02:01]} 16. e4 {[%clk 0:01:53]}  Nc7 {[%clk 0:02:02]} 17. Bxc3 {[%clk 0:01:52]}  Ndb5 {[%clk 0:02:00]} 18. Rd1 {[%clk 0:01:44]}  Nxa3 {[%clk 0:01:33]} 19. Qxa3 {[%clk 0:01:42]}  Nb5 {[%clk 0:01:34]} 20. Qc1 {[%clk 0:01:42]}  Nxc3 {[%clk 0:01:34]} 21. Qxc3 {[%clk 0:01:43]}  Qc7 {[%clk 0:01:31]} 22. Nc4 {[%clk 0:01:24]}  Rd8 {[%clk 0:01:30]} 23. e5 {[%clk 0:01:09]}  Be7 {[%clk 0:01:30]} 24. b5 {[%clk 0:00:56]}  cxb5 {[%clk 0:01:29]} 25. Rxb5 {[%clk 0:00:56]}  Rb8 {[%clk 0:01:29]} 26. Qb3 {[%clk 0:00:49]}  Bd7 {[%clk 0:00:35]} 27. Rxb7 {[%clk 0:00:48]}  Rxb7 {[%clk 0:00:35]} 28. Bxb7 {[%clk 0:00:48]}  Rb8 {[%clk 0:00:35]} 29. a6 {[%clk 0:00:46]}  Bc6 {[%clk 0:00:35]} 30. Nd6 {[%clk 0:00:28]}  Bxd6 {[%clk 0:00:32]} 31. exd6 {[%clk 0:00:29]}  Qxd6 {[%clk 0:00:33]} 32. Qc4 {[%clk 0:00:24]}  Bd5 {[%clk 0:00:22]} 33. Bxd5 {[%clk 0:00:24]}  exd5 {[%clk 0:00:23]} 34. Qc5 {[%clk 0:00:18]}  Qxa6 {[%clk 0:00:21]} 35. Qxd5 {[%clk 0:00:19]}  h6 {[%clk 0:00:22]} 36. Rc1 {[%clk 0:00:16]}  Qe2 {[%clk 0:00:17]} 37. Kg2 {[%clk 0:00:12]}  Qe7 {[%clk 0:00:12]} 38. Qf3 {[%clk 0:00:07]}  Rd8 {[%clk 0:00:12]} 39. d5 {[%clk 0:00:07]}  Qd6 {[%clk 0:00:12]} 40. Ra1 {[%clk 0:00:07]}  Rd7 {[%clk 0:00:13]} 41. Ra5 {[%clk 0:00:06]}  Qb6 {[%clk 0:00:12]} 42. Qa3 {[%clk 0:00:06]}  Qb7 {[%clk 0:00:11]} 43. Kg1 {[%clk 0:00:04]}  Qb1+ {[%clk 0:00:08]} 44. Kg2 {[%clk 0:00:04]}  Qe4+ {[%clk 0:00:09]} 45. Qf3 {[%clk 0:00:04]}  Qb4 {[%clk 0:00:09]} 46. Ra2 {[%clk 0:00:03]}  Qc4 {[%clk 0:00:08]} 47. Rd2 {[%clk 0:00:03]}  Qc5 {[%clk 0:00:05]} 48. Qe4 {[%clk 0:00:01]}  Rd8 {[%clk 0:00:05]} 49. d6 {[%clk 0:00:01]}  Rxd6 {[%clk 0:00:03]} 50. Rxd6 {[%clk 0:00:02]}  Qxd6 {[%clk 0:00:03]} 51. Qa8+ {[%clk 0:00:03]}  Kh7 {[%clk 0:00:03]} 52. Qxa7 {[%clk 0:00:04]}  Qe6 {[%clk 0:00:04]} 53. Qe3 {[%clk 0:00:04]}  Qxe3 {[%clk 0:00:03]} 54. fxe3 {[%clk 0:00:05]}  Kg6 {[%clk 0:00:04]} 55. Kf3 {[%clk 0:00:06]}  Kf5 {[%clk 0:00:05]} 56. e4+ {[%clk 0:00:06]}  Ke5 {[%clk 0:00:05]} 57. Ke3 {[%clk 0:00:06]}  h5 {[%clk 0:00:05]} 58. h3 {[%clk 0:00:06]}  g6 {[%clk 0:00:04]} 59. Kf3 {[%clk 0:00:06]}  Kd4 {[%clk 0:00:04]} 60. Kf4 {[%clk 0:00:06]}  f6 {[%clk 0:00:02]} 61. g4 {[%clk 0:00:06]}  h4 {[%clk 0:00:02]} 62. g5 {[%clk 0:00:06]}  fxg5+ {[%clk 0:00:02]} 63. Kxg5 {[%clk 0:00:07]}  Kxe4 {[%clk 0:00:02]} 64. Kxh4 {[%clk 0:00:06]}  Kf5 {[%clk 0:00:02]} 65. Kg3 {[%clk 0:00:07]}  Kg5 {[%clk 0:00:02]} 66. h4+ {[%clk 0:00:07]}  Kf5 {[%clk 0:00:03]} 67. Kh3 {[%clk 0:00:08]}  Kf4 {[%clk 0:00:03]} 68. h5 {[%clk 0:00:09]}  gxh5 {[%clk 0:00:03]} 69. Kh4 {[%clk 0:00:10]}  Kf5 {[%clk 0:00:04]} 70. Kxh5 {[%clk 0:00:11]} 1/2-1/2


[Site "https://www.chess.com"]

[Event "Titled Tuesday Blitz July 25 Late 2023"]
[White "Bluebaum, Matthias"]
[Black "Khandelwal, Ankush"]
[WhiteFideId "24651516"]
[BlackFideId "413470"]
[WhiteElo "3039"]
[BlackElo "2502"]
[Result "1-0"]
[Round "1"]
[TimeControl "180+2"]
[Date "2023.07.25"]
[WhiteClock "0:02:05"]
[BlackClock "0:00:00"]
[Board "10"]

1. d4 {[%clk 0:03:00]}  Nf6 {[%clk 0:02:58]} 2. c4 {[%clk 0:03:01]}  g6 {[%clk 0:02:51]} 3. Nc3 {[%clk 0:03:00]}  Bg7 {[%clk 0:02:48]} 4. e4 {[%clk 0:03:01]}  d6 {[%clk 0:02:48]} 5. Nf3 {[%clk 0:03:01]}  O-O {[%clk 0:02:45]} 6. Be2 {[%clk 0:03:02]}  e5 {[%clk 0:02:39]} 7. Be3 {[%clk 0:03:03]}  Ng4 {[%clk 0:02:16]} 8. Bg5 {[%clk 0:03:00]}  f6 {[%clk 0:02:15]} 9. Bh4 {[%clk 0:03:00]}  Nc6 {[%clk 0:02:09]} 10. d5 {[%clk 0:03:01]}  Ne7 {[%clk 0:02:01]} 11. Nd2 {[%clk 0:03:01]}  Nh6 {[%clk 0:01:58]} 12. f3 {[%clk 0:03:01]}  a5 {[%clk 0:01:51]} 13. Bf2 {[%clk 0:02:57]}  f5 {[%clk 0:01:50]} 14. c5 {[%clk 0:02:57]}  fxe4 {[%clk 0:01:27]} 15. Ndxe4 {[%clk 0:02:50]}  Nhf5 {[%clk 0:01:26]} 16. cxd6 {[%clk 0:02:50]}  cxd6 {[%clk 0:01:19]} 17. Nb5 {[%clk 0:02:51]}  Ra6 {[%clk 0:00:53]} 18. Rc1 {[%clk 0:02:47]}  Bh6 {[%clk 0:00:51]} 19. Rc3 {[%clk 0:02:47]}  Rb6 {[%clk 0:00:28]} 20. g4 {[%clk 0:02:36]}  Rxb5 {[%clk 0:00:28]} 21. Bxb5 {[%clk 0:02:30]}  Nd4 {[%clk 0:00:28]} 22. Bxd4 {[%clk 0:02:23]}  exd4 {[%clk 0:00:29]} 23. Qxd4 {[%clk 0:02:24]}  Bg7 {[%clk 0:00:29]} 24. Qd2 {[%clk 0:02:25]}  Qb6 {[%clk 0:00:29]} 25. Bc4 {[%clk 0:02:15]}  Bxc3 {[%clk 0:00:20]} 26. Qxc3 {[%clk 0:02:16]}  Rf7 {[%clk 0:00:05]} 27. Ke2 {[%clk 0:02:11]}  Kf8 {[%clk 0:00:05]} 28. Rc1 {[%clk 0:02:08]}  Bd7 {[%clk 0:00:05]} 29. b3 {[%clk 0:02:09]}  h5 {[%clk 0:00:04]} 30. Ng5 {[%clk 0:02:04]}  Rg7 {[%clk 0:00:00]} 31. Qf6+ {[%clk 0:02:05]} 1-0


[Site "https://www.chess.com"]

[Event "Titled Tuesday Blitz July 25 Late 2023"]
[White "Grischuk, Alexander"]
[Black "Besedes, Danilo"]
[WhiteFideId "4126025"]
[BlackFideId "946796"]
[WhiteElo "3029"]
[BlackElo "2501"]
[Result "1-0"]
[Round "1"]
[TimeControl "180+2"]
[Date "2023.07.25"]
[WhiteClock "0:00:03"]
[BlackClock "0:00:02"]
[Board "12"]

1. e4 {[%clk 0:03:00]}  e6 {[%clk 0:02:55]} 2. d4 {[%clk 0:03:00]}  d5 {[%clk 0:02:55]} 3. e5 {[%clk 0:03:00]}  c5 {[%clk 0:02:55]} 4. c3 {[%clk 0:03:01]}  Nc6 {[%clk 0:02:55]} 5. Nf3 {[%clk 0:03:01]}  Bd7 {[%clk 0:02:51]} 6. Be2 {[%clk 0:03:01]}  Nge7 {[%clk 0:02:48]} 7. O-O {[%clk 0:03:00]}  Nf5 {[%clk 0:02:48]} 8. dxc5 {[%clk 0:03:00]}  Bxc5 {[%clk 0:02:48]} 9. Bd3 {[%clk 0:03:00]}  Nh4 {[%clk 0:02:41]} 10. Nbd2 {[%clk 0:02:58]}  O-O {[%clk 0:02:39]} 11. Qe2 {[%clk 0:02:54]}  a6 {[%clk 0:02:32]} 12. g3 {[%clk 0:02:24]}  Ng6 {[%clk 0:02:31]} 13. Nb3 {[%clk 0:02:24]}  Ba7 {[%clk 0:02:31]} 14. Bg5 {[%clk 0:02:14]}  f6 {[%clk 0:01:59]} 15. exf6 {[%clk 0:02:15]}  gxf6 {[%clk 0:02:00]} 16. Bh6 {[%clk 0:02:10]}  Rf7 {[%clk 0:01:51]} 17. c4 {[%clk 0:02:08]}  d4 {[%clk 0:01:27]} 18. Nfd2 {[%clk 0:01:56]}  e5 {[%clk 0:01:26]} 19. f4 {[%clk 0:01:55]}  Qe7 {[%clk 0:01:12]} 20. Rae1 {[%clk 0:01:52]}  Re8 {[%clk 0:01:09]} 21. Qh5 {[%clk 0:01:50]}  f5 {[%clk 0:01:02]} 22. fxe5 {[%clk 0:01:47]}  Ncxe5 {[%clk 0:01:00]} 23. Bxf5 {[%clk 0:01:05]}  d3+ {[%clk 0:00:57]} 24. Kg2 {[%clk 0:01:04]}  Rxf5 {[%clk 0:00:54]} 25. Rxf5 {[%clk 0:01:03]}  Bc6+ {[%clk 0:00:47]} 26. Kf1 {[%clk 0:00:38]}  Qd6 {[%clk 0:00:26]} 27. Ne4 {[%clk 0:00:27]}  Bxe4 {[%clk 0:00:21]} 28. Rxe4 {[%clk 0:00:28]}  Qb6 {[%clk 0:00:14]} 29. Be3 {[%clk 0:00:14]}  Qc6 {[%clk 0:00:08]} 30. Rfxe5 {[%clk 0:00:05]}  Nxe5 {[%clk 0:00:06]} 31. Qg5+ {[%clk 0:00:04]}  Ng6 {[%clk 0:00:05]} 32. Rxe8+ {[%clk 0:00:02]}  Qxe8 {[%clk 0:00:06]} 33. Qd5+ {[%clk 0:00:02]}  Kg7 {[%clk 0:00:05]} 34. Bd4+ {[%clk 0:00:02]}  Kh6 {[%clk 0:00:05]} 35. Qf3 {[%clk 0:00:02]}  Bxd4 {[%clk 0:00:05]} 36. Nxd4 {[%clk 0:00:03]}  Qe6 {[%clk 0:00:02]} 37. Nxe6 {[%clk 0:00:03]} 1-0


[Site "https://www.chess.com"]

[Event "Titled Tuesday Blitz July 25 Late 2023"]
[White "Andreikin, Dmitry"]
[Black "Liu, Casper"]
[WhiteFideId "4158814"]
[BlackFideId "1454153"]
[WhiteElo "3024"]
[BlackElo "2499"]
[Result "1-0"]
[Round "1"]
[TimeControl "180+2"]
[Date "2023.07.25"]
[WhiteClock "0:02:21"]
[BlackClock "0:02:38"]
[Board "14"]

1. d4 {[%clk 0:02:59]}  d5 {[%clk 0:02:58]} 2. c4 {[%clk 0:02:59]}  dxc4 {[%clk 0:02:58]} 3. e4 {[%clk 0:02:53]}  a6 {[%clk 0:02:52]} 4. Bxc4 {[%clk 0:02:52]}  b5 {[%clk 0:02:52]} 5. Bd5 {[%clk 0:02:45]}  c6 {[%clk 0:02:52]} 6. Bb3 {[%clk 0:02:45]}  e6 {[%clk 0:02:52]} 7. Nf3 {[%clk 0:02:44]}  c5 {[%clk 0:02:52]} 8. O-O {[%clk 0:02:39]}  cxd4 {[%clk 0:02:52]} 9. Nxd4 {[%clk 0:02:39]}  Bc5 {[%clk 0:02:52]} 10. Be3 {[%clk 0:02:35]}  Nf6 {[%clk 0:02:49]} 11. Nxe6 {[%clk 0:02:27]}  Qxd1 {[%clk 0:02:43]} 12. Nxg7+ {[%clk 0:02:27]}  Kf8 {[%clk 0:02:41]} 13. Bxc5+ {[%clk 0:02:27]}  Kxg7 {[%clk 0:02:42]} 14. Rxd1 {[%clk 0:02:27]}  Nxe4 {[%clk 0:02:40]} 15. Bd4+ {[%clk 0:02:23]}  Nf6 {[%clk 0:02:41]} 16. Nc3 {[%clk 0:02:22]}  Nc6 {[%clk 0:02:40]} 17. Bxf6+ {[%clk 0:02:21]}  Kxf6 {[%clk 0:02:38]} 18. Rd6+ {[%clk 0:02:21]} 1-0


[Site "https://www.chess.com"]

[Event "Titled Tuesday Blitz July 25 Late 2023"]
[White "Paravyan, David"]
[Black "Plotkin, Victor"]
[WhiteFideId "4194985"]
[BlackFideId "2606674"]
[WhiteElo "3020"]
[BlackElo "2497"]
[Result "1-0"]
[Round "1"]
[TimeControl "180+2"]
[Date "2023.07.25"]
[WhiteClock "0:01:35"]
[BlackClock "0:00:12"]
[Board "16"]

1. e4 {[%clk 0:03:00]}  e5 {[%clk 0:03:00]} 2. Nf3 {[%clk 0:03:00]}  Nf6 {[%clk 0:03:00]} 3. d4 {[%clk 0:02:59]}  Nxe4 {[%clk 0:02:58]} 4. Bd3 {[%clk 0:03:00]}  Nc6 {[%clk 0:02:58]} 5. O-O {[%clk 0:02:58]}  d5 {[%clk 0:02:56]} 6. dxe5 {[%clk 0:02:59]}  Bg4 {[%clk 0:02:54]} 7. Nc3 {[%clk 0:02:59]}  Nxc3 {[%clk 0:02:48]} 8. bxc3 {[%clk 0:03:00]}  Bc5 {[%clk 0:02:47]} 9. Rb1 {[%clk 0:02:57]}  Bb6 {[%clk 0:02:46]} 10. Re1 {[%clk 0:02:56]}  O-O {[%clk 0:02:46]} 11. h3 {[%clk 0:02:57]}  Bh5 {[%clk 0:02:45]} 12. g4 {[%clk 0:02:53]}  Bg6 {[%clk 0:02:45]} 13. Be3 {[%clk 0:02:52]}  Re8 {[%clk 0:02:40]} 14. Bd4 {[%clk 0:02:39]}  Bxd3 {[%clk 0:02:35]} 15. Qxd3 {[%clk 0:02:37]}  h6 {[%clk 0:02:27]} 16. Kg2 {[%clk 0:02:37]}  Ne7 {[%clk 0:02:23]} 17. Nh4 {[%clk 0:02:34]}  c5 {[%clk 0:02:15]} 18. Be3 {[%clk 0:02:34]}  Nc6 {[%clk 0:02:11]} 19. f4 {[%clk 0:02:32]}  Qxh4 {[%clk 0:02:10]} 20. Qxd5 {[%clk 0:02:31]}  Rad8 {[%clk 0:02:06]} 21. Qe4 {[%clk 0:02:31]}  Rd7 {[%clk 0:01:49]} 22. Bf2 {[%clk 0:02:28]}  Qe7 {[%clk 0:01:48]} 23. Re2 {[%clk 0:02:21]}  Qe6 {[%clk 0:01:48]} 24. Rbe1 {[%clk 0:02:18]}  Qd5 {[%clk 0:01:48]} 25. Qxd5 {[%clk 0:02:15]}  Rxd5 {[%clk 0:01:48]} 26. c4 {[%clk 0:02:16]}  Rd7 {[%clk 0:01:45]} 27. h4 {[%clk 0:02:11]}  Na5 {[%clk 0:01:38]} 28. Re4 {[%clk 0:02:08]}  Rd2 {[%clk 0:01:37]} 29. f5 {[%clk 0:02:06]}  Rxc2 {[%clk 0:01:36]} 30. e6 {[%clk 0:02:02]}  fxe6 {[%clk 0:01:34]} 31. Rxe6 {[%clk 0:02:03]}  Rxe6 {[%clk 0:01:33]} 32. fxe6 {[%clk 0:01:59]}  Kf8 {[%clk 0:01:25]} 33. Kf3 {[%clk 0:02:00]}  Nxc4 {[%clk 0:01:22]} 34. Bg3 {[%clk 0:02:00]}  Ke7 {[%clk 0:01:18]} 35. h5 {[%clk 0:02:01]}  Rxa2 {[%clk 0:01:11]} 36. Bh4+ {[%clk 0:02:01]}  Ke8 {[%clk 0:01:10]} 37. g5 {[%clk 0:02:00]}  Bd8 {[%clk 0:01:00]} 38. e7 {[%clk 0:01:52]}  Bc7 {[%clk 0:00:55]} 39. gxh6 {[%clk 0:01:51]}  gxh6 {[%clk 0:00:53]} 40. Rg1 {[%clk 0:01:52]}  Nd6 {[%clk 0:00:50]} 41. Rg8+ {[%clk 0:01:51]}  Kd7 {[%clk 0:00:48]} 42. Rd8+ {[%clk 0:01:50]}  Bxd8 {[%clk 0:00:22]} 43. exd8=Q+ {[%clk 0:01:51]}  Kc6 {[%clk 0:00:22]} 44. Be7 {[%clk 0:01:49]}  Rd2 {[%clk 0:00:20]} 45. Qh8 {[%clk 0:01:37]}  b5 {[%clk 0:00:13]} 46. Qxh6 {[%clk 0:01:35]}  b4 {[%clk 0:00:12]} 47. Qxd2 {[%clk 0:01:35]} 1-0


[Site "https://www.chess.com"]

[Event "Titled Tuesday Blitz July 25 Late 2023"]
[White "Koc, Przemyslaw"]
[Black "Bortnyk, Olexandr"]
[WhiteFideId "1109081"]
[BlackFideId "14120828"]
[WhiteElo "2493"]
[BlackElo "3015"]
[Result "1/2-1/2"]
[Round "1"]
[TimeControl "180+2"]
[Date "2023.07.25"]
[WhiteClock "0:00:08"]
[BlackClock "0:00:08"]
[Board "17"]

1. Nf3 {[%clk 0:02:53]}  Nf6 {[%clk 0:03:00]} 2. g3 {[%clk 0:02:52]}  b6 {[%clk 0:03:00]} 3. Bg2 {[%clk 0:02:52]}  Bb7 {[%clk 0:03:01]} 4. O-O {[%clk 0:02:51]}  g6 {[%clk 0:03:02]} 5. b3 {[%clk 0:02:51]}  Bg7 {[%clk 0:03:02]} 6. Bb2 {[%clk 0:02:52]}  O-O {[%clk 0:03:03]} 7. c4 {[%clk 0:02:51]}  e6 {[%clk 0:03:03]} 8. d4 {[%clk 0:02:48]}  d5 {[%clk 0:03:03]} 9. Nbd2 {[%clk 0:02:47]}  c5 {[%clk 0:02:54]} 10. Rc1 {[%clk 0:02:41]}  Na6 {[%clk 0:02:53]} 11. e3 {[%clk 0:02:40]}  Qe7 {[%clk 0:02:49]} 12. Ne5 {[%clk 0:02:39]}  Rfd8 {[%clk 0:02:48]} 13. Qe2 {[%clk 0:02:39]}  Rac8 {[%clk 0:02:43]} 14. Rfd1 {[%clk 0:02:38]}  cxd4 {[%clk 0:02:41]} 15. exd4 {[%clk 0:02:37]}  dxc4 {[%clk 0:02:41]} 16. bxc4 {[%clk 0:02:36]}  Bxg2 {[%clk 0:02:40]} 17. Kxg2 {[%clk 0:02:37]}  Nb4 {[%clk 0:02:37]} 18. a3 {[%clk 0:02:30]}  Nc6 {[%clk 0:02:31]} 19. Nxc6 {[%clk 0:02:29]}  Rxc6 {[%clk 0:02:32]} 20. d5 {[%clk 0:02:18]}  Rcd6 {[%clk 0:02:01]} 21. Bxf6 {[%clk 0:02:16]}  Bxf6 {[%clk 0:02:00]} 22. Ne4 {[%clk 0:02:16]}  exd5 {[%clk 0:01:59]} 23. cxd5 {[%clk 0:02:10]}  Rxd5 {[%clk 0:01:49]} 24. Rxd5 {[%clk 0:02:03]}  Rxd5 {[%clk 0:01:49]} 25. Nxf6+ {[%clk 0:01:56]}  Qxf6 {[%clk 0:01:50]} 26. Qe8+ {[%clk 0:01:56]}  Kg7 {[%clk 0:01:51]} 27. Rc8 {[%clk 0:01:57]}  Qd6 {[%clk 0:01:13]} 28. Qg8+ {[%clk 0:01:47]}  Kh6 {[%clk 0:01:14]} 29. Qxf7 {[%clk 0:01:47]}  Rf5 {[%clk 0:01:13]} 30. Qc4 {[%clk 0:01:39]}  Qd5+ {[%clk 0:01:12]} 31. Qxd5 {[%clk 0:01:39]}  Rxd5 {[%clk 0:01:13]} 32. h4 {[%clk 0:01:29]}  Ra5 {[%clk 0:00:43]} 33. Rc3 {[%clk 0:01:28]}  Ra4 {[%clk 0:00:40]} 34. Kh3 {[%clk 0:01:26]}  Kg7 {[%clk 0:00:33]} 35. g4 {[%clk 0:01:19]}  h5 {[%clk 0:00:33]} 36. f3 {[%clk 0:01:19]}  Kf6 {[%clk 0:00:25]} 37. Kg3 {[%clk 0:01:18]}  Ke5 {[%clk 0:00:23]} 38. Re3+ {[%clk 0:01:10]}  Kf6 {[%clk 0:00:23]} 39. f4 {[%clk 0:00:51]}  hxg4 {[%clk 0:00:19]} 40. Kxg4 {[%clk 0:00:52]}  Rc4 {[%clk 0:00:12]} 41. Rd3 {[%clk 0:00:49]}  Rc6 {[%clk 0:00:12]} 42. Rd7 {[%clk 0:00:47]}  a5 {[%clk 0:00:12]} 43. Rb7 {[%clk 0:00:46]}  Rd6 {[%clk 0:00:12]} 44. a4 {[%clk 0:00:41]}  Rc6 {[%clk 0:00:13]} 45. Rb8 {[%clk 0:00:40]}  Kg7 {[%clk 0:00:10]} 46. Kg5 {[%clk 0:00:39]}  Rc5+ {[%clk 0:00:09]} 47. Kg4 {[%clk 0:00:39]}  Rc6 {[%clk 0:00:04]} 48. Kg5 {[%clk 0:00:40]}  Rc5+ {[%clk 0:00:04]} 49. Kg4 {[%clk 0:00:40]}  Rc1 {[%clk 0:00:04]} 50. Rxb6 {[%clk 0:00:38]}  Rg1+ {[%clk 0:00:05]} 51. Kf3 {[%clk 0:00:38]}  Ra1 {[%clk 0:00:05]} 52. Kg4 {[%clk 0:00:36]}  Kh6 {[%clk 0:00:06]} 53. f5 {[%clk 0:00:33]}  Rxa4+ {[%clk 0:00:06]} 54. Kg3 {[%clk 0:00:33]}  Kh5 {[%clk 0:00:02]} 55. Rxg6 {[%clk 0:00:31]}  Rxh4 {[%clk 0:00:01]} 56. Ra6 {[%clk 0:00:28]}  Ra4 {[%clk 0:00:01]} 57. Rg6 {[%clk 0:00:20]}  Ra3+ {[%clk 0:00:01]} 58. Kf4 {[%clk 0:00:20]}  Ra1 {[%clk 0:00:01]} 59. Ra6 {[%clk 0:00:18]}  Rf1+ {[%clk 0:00:01]} 60. Ke5 {[%clk 0:00:18]}  Kg5 {[%clk 0:00:02]} 61. Rg6+ {[%clk 0:00:18]}  Kh5 {[%clk 0:00:03]} 62. Rg2 {[%clk 0:00:16]}  a4 {[%clk 0:00:03]} 63. f6 {[%clk 0:00:16]}  a3 {[%clk 0:00:03]} 64. Ke6 {[%clk 0:00:16]}  Re1+ {[%clk 0:00:02]} 65. Kd7 {[%clk 0:00:16]}  Rd1+ {[%clk 0:00:02]} 66. Ke8 {[%clk 0:00:16]}  Re1+ {[%clk 0:00:02]} 67. Kf8 {[%clk 0:00:17]}  Rb1 {[%clk 0:00:01]} 68. f7 {[%clk 0:00:16]}  Rb2 {[%clk 0:00:02]} 69. Rg1 {[%clk 0:00:13]}  a2 {[%clk 0:00:02]} 70. Kg8 {[%clk 0:00:09]}  Rb1 {[%clk 0:00:02]} 71. Rxb1 {[%clk 0:00:02]}  axb1=Q {[%clk 0:00:03]} 72. f8=Q {[%clk 0:00:02]}  Qg6+ {[%clk 0:00:04]} 73. Qg7 {[%clk 0:00:02]}  Qe8+ {[%clk 0:00:05]} 74. Qf8 {[%clk 0:00:02]}  Qg6+ {[%clk 0:00:04]} 75. Qg7 {[%clk 0:00:03]}  Qe8+ {[%clk 0:00:04]} 76. Qf8 {[%clk 0:00:03]}  Qc6 {[%clk 0:00:05]} 77. Qf7+ {[%clk 0:00:02]}  Kg5 {[%clk 0:00:05]} 78. Qg7+ {[%clk 0:00:03]}  Kf5 {[%clk 0:00:06]} 79. Qf7+ {[%clk 0:00:03]}  Kg4 {[%clk 0:00:06]} 80. Kg7 {[%clk 0:00:03]}  Qc3+ {[%clk 0:00:05]} 81. Qf6 {[%clk 0:00:03]}  Qc7+ {[%clk 0:00:05]} 82. Qf7 {[%clk 0:00:04]}  Qe5+ {[%clk 0:00:05]} 83. Qf6 {[%clk 0:00:04]}  Qc7+ {[%clk 0:00:04]} 84. Qf7 {[%clk 0:00:04]}  Qd8 {[%clk 0:00:04]} 85. Qg6+ {[%clk 0:00:04]}  Kh3 {[%clk 0:00:05]} 86. Qh6+ {[%clk 0:00:04]}  Kg2 {[%clk 0:00:05]} 87. Qg6+ {[%clk 0:00:05]}  Kh1 {[%clk 0:00:05]} 88. Qh6+ {[%clk 0:00:05]}  Kg1 {[%clk 0:00:06]} 89. Qg6+ {[%clk 0:00:06]}  Kh1 {[%clk 0:00:07]} 90. Qh6+ {[%clk 0:00:06]}  Kg2 {[%clk 0:00:07]} 91. Qg6+ {[%clk 0:00:07]}  Kf3 {[%clk 0:00:08]} 92. Qf6+ {[%clk 0:00:07]}  Qxf6+ {[%clk 0:00:08]} 93. Kxf6 {[%clk 0:00:08]} 1/2-1/2


[Site "https://www.chess.com"]